Cogmind - Beta 10.2 --- EXPLORER MODE // 2021.09.06 @ 17:10:47 Player: Creek Result: Destroyed by as-43995 with Assembled Maul Performance ------------- Evolutions (0) 0 Regions Visited (2) 400 Robots Destroyed (6) 30 Value Destroyed (57) 57 Prototype IDs (0) 0 Alien Tech Used (0) 0 Bonus (0) 0 TOTAL SCORE: 487 Bonus ------- None Cogmind --------- Core Integrity 0/250 Matter 292/300 Energy 100/100 System Corruption 5% Temperature Cool (0) Movement Core (50) Location -10/Mines Parts ------- > --- POWER (2) -------- (None) > --- PROPULSION (2) --- (None) > --- UTILITY (2) ------ Power Shielding > --- WEAPON (2) ------- (None) > --- INVENTORY (4) ---- High-capacity Storage Unit Visual Processing Unit Peak State ------------ > --- POWER ------------ Light Ion Engine Light Ion Engine > --- PROPULSION ------- Wheel Compact Wheel > --- UTILITY ---------- Targeting Computer Power Shielding > --- WEAPON ----------- Beam Cannon Light Assault Rifle > --- INVENTORY -------- High-capacity Storage Unit Medium Battery Visual Processing Unit [Rating: 8] Favorites ----------- Power Light Ion Engine Engine Light Ion Engine Propulsion Light Treads Treads Light Treads Wheel Wheel Utility Power Shielding Storage Medium Battery Processor Targeting Computer Protection Power Shielding Weapon Light Assault Rifle Energy Cannon Beam Cannon Ballistic Gun Light Assault Rifle Build | -11 -10 -10 ------- Run | Scr Mat Min Slots Evolved 1 | . 1 . Power 1 | . 1 . Propulsion . | . . . Utility . | . . . Weapon . | . . . Parts Attached 12 | 7 4 1 Power 2 | 1 1 . Engine 2 | 1 1 . Core . | . . . Reactor . | . . . Propulsion 4 | 2 2 . Treads 2 | 2 . . Leg . | . . . Wheel 2 | . 2 . Hover . | . . . Flight . | . . . Utility 3 | 2 . 1 Device . | . . . Storage 1 | . . 1 Processor 1 | 1 . . Hackware . | . . . Protection 1 | 1 . . Artifact . | . . . Weapon 3 | 2 1 . Energy Gun . | . . . Energy Cannon 1 | . 1 . Ballistic Gun 2 | 2 . . Ballistic Cannon . | . . . Launcher . | . . . Special Weapon . | . . . Impact Weapon . | . . . Slashing Weapon . | . . . Piercing Weapon . | . . . Special Melee Weapon . | . . . Unidentified Prototypes . | . . . Parts Lost 7 | . . 7 Power 2 | . . 2 Propulsion 2 | . . 2 Utility 2 | . . 2 Weapon 1 | . . 1 Highest Loss Streak 7 | . . 7 Average Slot Usage (%) 81 | . 83 70 Engine 12 | . 12 14 Treads 15 | . 17 . Wheel 5 | . 3 20 Processor 11 | . 12 4 Protection 12 | . 12 12 Energy Cannon 3 | . 2 4 Ballistic Gun 20 | . 21 10 Naked Turns . | . . . Heaviest Build 11 | 6 11 11 Greatest Support 40 | 40 40 26 Greatest Overweight (x) 2 | 1 2 . Average Overweight (x) . | . . . Largest Inventory Capacity 4 | 4 4 4 Average Capacity 4 | 4 4 4 Most Carried 4 | 4 4 3 Average Carried 2 | . 2 2 Final Capacity 4 | 4 4 4 Final Carried 3 | . 3 2 Class Distribution -------------------- 100% | Hacker-Mutant Dominant Class ---------------- Hacker-Mutant | -10/Materials Hacker-Mutant | -10/Mines Resources | -11 -10 -10 ----------- Run | Scr Mat Min Matter Collected 317 | 263 42 12 Remotely . | . . . Salvage Created 138 | . 114 24 Parts 11 | . 11 . Haulers Intercepted . | . . . Recyclers Shooed . | . . . Parts Field Recycled . | . . . Retrieved Matter . | . . . Parts Self-Destructed . | . . . Prevented . | . . . Kills | -11 -10 -10 ------- Run | Scr Mat Min Combat Hostiles Destroyed 6 | . 4 2 Guns 6 | . 4 2 Classes Destroyed 4 | . 3 1 Worker 1 | . 1 . Watcher 1 | . 1 . Swarmer 4 | . 4 . Assembled 2 | . . 2 Best Kill Streak 2 | . 2 2 Combat Bots Only 2 | . 2 2 Max Kills in Single Turn 1 | . 1 1 Gunslinging . | . . . Exploded . | . . . Melee . | . . . Uniques/NPCs Destroyed . | . . . Combat | -11 -10 -10 -------- Run | Scr Mat Min Damage Taken 677 | . 78 599 Core 253 | . . 253 Absorbed by Shields . | . . . Core Remaining (%) 100 | 100 . . Volleys Fired 29 | . 14 15 Largest 2 | . 2 2 Hottest 80 | . 80 80 Shots Fired 46 | . 28 18 Gun 38 | . 23 15 Cannon 8 | . 5 3 Launcher . | . . . Special . | . . . Kinetic 38 | . 23 15 Thermal 8 | . 5 3 Explosive . | . . . Electromagnetic . | . . . Robot Hit Streak 16 | . 7 16 Robot Miss Streak 3 | . 3 2 Penetration Max . | . . . Secondary Targets 1 | . 1 . Max Gunslinging Chain 1 | . 1 . Shots Hit Robots 33 | . 17 16 Core Hits 20 | . 9 11 Critical Hits 1 | . . 1 Critical Kills . | . . . Critical Parts Destroyed 1 | . . 1 Melee Attacks . | . . . Impact . | . . . Slashing . | . . . Piercing . | . . . Sneak Attacks . | . . . Combat Hostiles . | . . . Follow-up Attacks . | . . . Damage Inflicted 334 | . 176 158 Guns 202 | . 88 114 Cannons 123 | . 88 35 Explosions . | . . . Melee . | . . . Ramming 9 | . . 9 Kinetic 202 | . 88 114 Thermal 123 | . 88 35 Explosive . | . . . Electromagnetic . | . . . Impact . | . . . Slashing . | . . . Piercing . | . . . Highest Corruption 5 | . 2 5 Average Corruption 2 | . 1 4 Corruption Purged . | . . . Effects 7 | . 6 1 Message Errors 3 | . 3 . Matter Fused 1 | . . 1 Heat Flow Errors 1 | . 1 . Energy Discharges 1 | . 1 . Data Loss (minor) 1 | . 1 . Overload Shots . | . . . Overflow Damage . | . . . Projectiles . | . . . Explosions . | . . . Melee . | . . . Knockbacks . | . . . Impact . | . . . Kinetic . | . . . Secondary . | . . . Self-Inflicted Damage 4 | . . 4 Shots . | . . . Rammed 2 | . . 2 Targets Rammed 2 | . . 2 Kicked . | . . . Crushed . | . . . Highest Temperature 135 | . 119 135 Average Temperature 58 | . 46 73 Received Heat Transfer 20 | . . 20 Siege Activations . | . . . Robots Corrupted . | . . . Combat Hostiles . | . . . Parts Fried . | . . . Impact Corruptions . | . . . Robots Melted . | . . . Combat Hostiles . | . . . Parts Melted . | . . . Heat Transferred 259 | . 185 74 Parts Sabotaged . | . . . Parts Stolen . | . . . Parts Stripped . | . . . Power Chain Reactions . | . . . Missiles Intercepted . | . . . Alert | -11 -10 -10 ------- Run | Scr Mat Min Peak Influence 105 | . 105 6 Initial 6 | . . 6 Average 29 | . 42 2 Maximum Alert Level . | . . . Low Security (%) 100 | 100 100 100 Level 1 . | . . . Level 2 . | . . . Level 3 . | . . . Level 4 . | . . . Level 5 . | . . . High Security . | . . . Max Security . | . . . Squads Dispatched . | . . . Investigation . | . . . Extermination . | . . . Reinforcement . | . . . Assault . | . . . Garrison . | . . . Intercept . | . . . Construction Impeded . | . . . Haulers Reinforced . | . . . Stealth | -11 -10 -10 --------- Run | Scr Mat Min Distress Signals . | . . . Communications Jammed . | . . . Distress Signals . | . . . Times Spotted 21 | . 6 15 Peak Tracking Total 15 | . 2 15 Tactical Retreats 1 | . . 1 Traps | -11 -10 -10 ------- Run | Scr Mat Min Traps Triggered 3 | . 3 . Indirectly . | . . . Trap Hack Attempts . | . . . Triggered . | . . . Disarmed . | . . . Reprogrammed . | . . . Reused . | . . . Traps Extracted . | . . . Installed . | . . . Triggered . | . . . Machines | -11 -10 -10 ---------- Run | Scr Mat Min Machines Disabled . | . . . Max in Single Turn . | . . . Machines Sabotaged . | . . . Garrisons Compromised . | . . . Overloaded Fab Kills . | . . . Fab Network Shutdowns . | . . . Hacking | -11 -10 -10 --------- Run | Scr Mat Min Machines Accessed 1 | . 1 . Terminals 1 | . 1 . Fabricators . | . . . Repair Stations . | . . . Recycling Units . | . . . Scanalyzers . | . . . Garrison Access . | . . . Total Hacks 3 | . 3 . Successful 3 | . 3 . Failed . | . . . Catastrophic . | . . . Database Lockouts . | . . . Manual . | . . . Terminals 3 | . 3 . Fabricators . | . . . Repair Stations . | . . . Recycling Units . | . . . Scanalyzers . | . . . Garrison Access . | . . . Terminal Hacks 3 | . 3 . Record 3 | . 3 . Fabricator Hacks . | . . . Repair Station Hacks . | . . . Recycling Unit Hacks . | . . . Scanalyzer . | . . . Garrison Access Hacks . | . . . Unauthorized Hacks . | . . . Terminals . | . . . Fabricators . | . . . Repair Stations . | . . . Recycling Units . | . . . Scanalyzers . | . . . Garrison Access . | . . . Data Cores Recovered . | . . . Used . | . . . Hacking Detections . | . . . Full Trace Events . | . . . Feedback Events . | . . . Feedback Blocked . | . . . Robot Schematics Acquired . | . . . Robots Built . | . . . Matter . | . . . Time . | . . . Total Robot Build Rating . | . . . Part Schematics Acquired . | . . . Parts Built . | . . . Matter . | . . . Time . | . . . Total Part Build Rating . | . . . Parts Repaired . | . . . Time . | . . . Parts Recycled . | . . . Recycled Matter . | . . . Retrieved Matter . | . . . Retrieved Components . | . . . Parts Scanalyzed . | . . . Part Schematics Acquired . | . . . Parts Damaged . | . . . Bothacking | -11 -10 -10 ------------ Run | Scr Mat Min Used RIF Installer . | . . . Robots Hacked . | . . . Non-combat . | . . . Combat . | . . . Robot Hacks Applied . | . . . Relay Couplers Released . | . . . Robots Rewired . | . . . Allies Hacked . | . . . Hacks Repelled . | . . . Allies | -11 -10 -10 -------- Run | Scr Mat Min Total Allies . | . . . Largest Group . | . . . Highest-Rated Group . | . . . Highest-Rated Ally . | . . . Total Orders . | . . . Ally Attacks . | . . . Total Damage . | . . . Kills . | . . . Allies Corrupted . | . . . Allies Melted . | . . . Intel | -11 -10 -10 ------- Run | Scr Mat Min Robot Analysis Total . | . . . Derelict Logs Recovered . | . . . Drone Launches . | . . . Drone Recoveries . | . . . Exploration | -11 -10 -10 ------------- Run | Scr Mat Min Turns Passed 641 | 135 449 57 Spaces Moved 394 | 80 286 28 Core 71 | 43 26 2 Treads 219 | 37 182 . Legs . | . . . Wheels 104 | . 78 26 Hover . | . . . Flight . | . . . Fastest Speed 50 | 50 80 50 Average Speed 126 | 105 136 84 Slowest Speed 160 | 160 160 90 Overloaded Moves . | . . . Propulsion Burnouts . | . . . Robots Hopped . | . . . Cave-ins Triggered . | . . . Exploration Rate (%) 22 | 5 53 8 Regions Visited 2 Branch Regions 1 Pre-discovered Areas . | . . . Known Exits Taken 2 | 1 1 . Unknown Exits Taken . | . . . Scrap Searched . | . . . Spaces Dug . | . . . Terrain Destroyed . | . . . Melee . | . . . Projectile . | . . . AOE . | . . . Terrain Rammed . | . . . Walls Destroyed . | . . . Machines Disabled . | . . . Actions | -11 -10 -10 --------- Run | Scr Mat Min Total 502 | 131 325 46 Wait 40 | 38 2 . Move 392 | 79 285 28 Hop . | . . . Pick Up 19 | 7 12 . Fast Attach . | . . . Attach 11 | 7 3 1 Detach . | . . . Swap 1 | . 1 . Drop 8 | . 8 . Fire 29 | . 14 15 Melee . | . . . Ram 2 | . . 2 Kick . | . . . Crush . | . . . Escape Stasis . | . . . Rewire . | . . . Trap . | . . . Miscellaneous . | . . . Route ------- -11/Scrapyard -10/Materials (discovered 2 exits: *Min x2) -10/Mines History --------- Turn | Location | Event 58 | -11/Scrapyard | Identified exit to Materials 58 | -11/Scrapyard | Discovered exit to Materials (range 15) 136 | -11/Scrapyard | Entered Materials 136 | -10/Materials | Evolved 1 slot: Power x1 308 | -10/Materials | Build established: Hacker-Mutant 333 | -10/Materials | Identified exit to Mines 333 | -10/Materials | Discovered exit to Mines (range 8) 423 | -10/Materials | Discovered exit to Mines (range 16) 585 | -10/Materials | Entered Mines 586 | -10/Mines | Assembled infested the area 631 | -10/Mines | Core integrity fell below 50% 642 | -10/Mines | Core integrity fell below 20% 642 | -10/Mines | Destroyed by as-43995 with Assembled Maul Last Messages --------------- 00604_ Targeting Computer destroyed. 00604_ System corrupted by crushing effect (+3). 00604_ as-66356 sneak attacks. 00604_ K-01 Serf destroyed. 00607_ Beam Cannon severed. 00611_ as-40987 suffers critical hit. 00611_ Destroyed Asb. Hover Unit. 00615_ Lgt. Ion Engine destroyed. 00617_ as-91932 destroyed. 00625_ Knocked back. 00627_ Com. Wheel destroyed. 00629_ Lgt. Ion Engine destroyed. 00632_ Lgt. Assault Rifle destroyed. 00635_ System corrupted: Matter fused (-8). 00636_ K-01 Serf collects debris. 00637_ Slammed into as-83855. 00639_ Med. Battery destroyed. 00640_ Wheel destroyed. 00641_ Slammed into as-79470. 00642_ Acquired 12 matter. Map ----- +----------------------------------------------------+ | ??????????????????????????????????????? | | ??????????????????????????????????????? | | ??????????????????????????????????????? | | ??????????????????????????????????????? | | ??????????????????????????????????????? | | ??????????????????????????????????????? | | ?????????#########????????????????????? | | ?????????# #????????????????????? | | ?????????# """ #????????????????????? | | ?????????# """ #????????????????????? | | ?????????# """ #????????????????????? | | ?????????# #?????? ?????????????? | | ?????????# #????? #???????????? | | ?????????# #????? ????????????? | | ?????????# #???? #????????????? | | ?????????# #???? ##???????????? | | ?????????### ####???" ##??????????? | | ???????????# #?????? ???????????? | | ???????????# #????? %????????????? | | ???????????# #????? #?????????????? | | ???????????# #???? ##????????????? | | ???????????# #???? ##???????????? | | ???????????#aa#??? ##??????????? | | ???????????#a #### #??????????? | | ???????????#aaaaaa #??????????? | | ???????????# a@a=a ##### #???????????? | | ???????????#########??????????????????? | | ??????????????????????????????????????? | | | | | | | | | | | | | | | | | | | | | | | | | | | | | | | | | | | | | | | | | | | | | +----------------------------------------------------+ Best States ------------- Heat Dissipation 25 Energy Generation 15 Energy Capacity 325 Matter Stores 300 Matter Capacity 300 Sight Range 16 Terrain Scan Density 10 Resistance: KI 35 Resistance: TH 35 Resistance: EX 35 Resistance: EM 35 Resistance: I 35 Resistance: S 35 Resistance: P 35 Power Shielding 33 Evasion (%) 50 Targeting Accuracy 5 Recoil Reduction 2 Offensive Hacking 20 Item Schematics ----------------- None Robot Schematics ------------------ None Fabricated ------------ Nothing Alien Tech Used ----------------- None Achievements -------------- None Challenges ------------ None Game ------ Seed RemoteReflectiveDetonator Manual? 0 Play Time 00:11:19 Cumulative 6.8 hours Start 2021.04.04 @ 18:43:54 End 2021.09.06 @ 17:10:47 Sessions 1 Manual Loads 0 Difficulty Explorer Special Mode None Game No. 21 Rogue 16 Adventurer 0 Explorer 5 Win Type - Total 0 Types 0/0/0/0/0/0/0/0/0 Lore% 3 Gallery% 13 Achievement% 12 Wizard Run 0 Options --------- ASCII 0 Keyboard 1 Movement Numpad Keybinds 0 Fullscreen 2 Font 24/Smallcaps Map View 76x50 Tactical HUD 1 Map Filters NONE Filters NONE Steam 1 RUN: dc7aeea7-2a75-4125-845a-b6eb8e66af04